{"text_format":"1","workbook":"xlsx","n_sheets":3,"sheets":["Лист1","Лист2","Лист3"],"not_rendered":{"charts":0,"images":0,"macros":1,"external_links":0,"defined_names":0,"comments":0,"pivot_tables":0},"unopened":[],"bounds":{"document_bytes":16777216,"sheet_cells":100000,"rows_first":2000,"rows_last":500,"rows_between":2000,"halvings":0,"cell_chars":16384,"cell_head_chars":4096},"cells_cut":0,"cells_raw":0,"read":"whole","date_system":"1900"}

{"sheet":"Лист1","index":0,"n_rows":10,"n_cols":21,"rows_kept":10,"cut":false,"hidden":false,"merged":[]}
["Организация/имя","Телефон","Адрес","E-mail","Заметки","Фамилия1","Имя1","Отчество1","Телефон11","Телефон12","E-mail1","Должность1","Адрес1","Фамилия2","Имя2","Отчество2","Телефон21","Телефон22","E-mail2","Должность2","Адрес2"]
[]
[]
[]
["Тип датчика","Номер датчика","Наличие паспорта","Статус датчика","Примечания","Дата присвоения статуса","Срок аттестации (месяцы)","Дата окончания аттестации","Дней до возврата датчика","Телефон12","E-mail1","Должность1","Адрес1","Фамилия2","Имя2","Отчество2","Телефон21","Телефон22","E-mail2","Должность2","Адрес2"]
["ЛХ-412\\60","012384",{"$f":"IF(OR(ТаблПаспорта[для сравнения]=Phonebook[[#This Row],[Тип датчика]]&\"|\"&Phonebook[[#This Row],[Номер датчика]]),\"Есть паспорт\",\"Нет паспорта\")","v":"Есть паспорт"},"Аттестован","119 Изделие","11.12.2014",3,{"$f":"IFERROR(IF(AND(Phonebook[[#This Row],[Статус датчика]]=Лист2!$C$4,Phonebook[[#This Row],[Дата присвоения статуса]]<>\"\"),EDATE(Phonebook[[#This Row],[Дата присвоения статуса]],Phonebook[[#This Row],[Срок аттестации (месяцы)]]),\"\"),\"\")","v":""},{"$f":"IFERROR(IF(Phonebook[[#This Row],[Дата окончания аттестации]]-TODAY()=0,\"Крайний срок\",IF(AND(Phonebook[[#This Row],[Статус датчика]]=Лист2!$C$4,Phonebook[[#This Row],[Дата присвоения статуса]]<>\"\"),IF(Phonebook[[#This Row],[Дата окончания аттестации]]-TODAY()<0,\"Истекший срок\",Phonebook[[#This Row],[Дата окончания аттестации]]-TODAY()),\"\")),\"\")","v":""}]
["ЛХ-412\\60","012423",{"$f":"IF(OR(ТаблПаспорта[для сравнения]=Phonebook[[#This Row],[Тип датчика]]&\"|\"&Phonebook[[#This Row],[Номер датчика]]),\"Есть паспорт\",\"Нет паспорта\")","v":"Есть паспорт"},"Не аттестован",null,"2015-07-08",3,{"$f":"IFERROR(IF(AND(Phonebook[[#This Row],[Статус датчика]]=Лист2!$C$4,Phonebook[[#This Row],[Дата присвоения статуса]]<>\"\"),EDATE(Phonebook[[#This Row],[Дата присвоения статуса]],Phonebook[[#This Row],[Срок аттестации (месяцы)]]),\"\"),\"\")","v":""},{"$f":"IFERROR(IF(Phonebook[[#This Row],[Дата окончания аттестации]]-TODAY()=0,\"Крайний срок\",IF(AND(Phonebook[[#This Row],[Статус датчика]]=Лист2!$C$4,Phonebook[[#This Row],[Дата присвоения статуса]]<>\"\"),IF(Phonebook[[#This Row],[Дата окончания аттестации]]-TODAY()<0,\"Истекший срок\",Phonebook[[#This Row],[Дата окончания аттестации]]-TODAY()),\"\")),\"\")","v":""}]
["ЛХ-412\\60","16374",{"$f":"IF(OR(ТаблПаспорта[для сравнения]=Phonebook[[#This Row],[Тип датчика]]&\"|\"&Phonebook[[#This Row],[Номер датчика]]),\"Есть паспорт\",\"Нет паспорта\")","v":"Есть паспорт"},"Аттестован","119 Изделие","2014-11-28",3,{"$f":"IFERROR(IF(AND(Phonebook[[#This Row],[Статус датчика]]=Лист2!$C$4,Phonebook[[#This Row],[Дата присвоения статуса]]<>\"\"),EDATE(Phonebook[[#This Row],[Дата присвоения статуса]],Phonebook[[#This Row],[Срок аттестации (месяцы)]]),\"\"),\"\")","v":""},{"$f":"IFERROR(IF(Phonebook[[#This Row],[Дата окончания аттестации]]-TODAY()=0,\"Крайний срок\",IF(AND(Phonebook[[#This Row],[Статус датчика]]=Лист2!$C$4,Phonebook[[#This Row],[Дата присвоения статуса]]<>\"\"),IF(Phonebook[[#This Row],[Дата окончания аттестации]]-TODAY()<0,\"Истекший срок\",Phonebook[[#This Row],[Дата окончания аттестации]]-TODAY()),\"\")),\"\")","v":""}]
["ЛХ-412\\60","35992",{"$f":"IF(OR(ТаблПаспорта[для сравнения]=Phonebook[[#This Row],[Тип датчика]]&\"|\"&Phonebook[[#This Row],[Номер датчика]]),\"Есть паспорт\",\"Нет паспорта\")","v":"Есть паспорт"},"Аттестован","119 Изделие","2014-10-08",3,{"$f":"IFERROR(IF(AND(Phonebook[[#This Row],[Статус датчика]]=Лист2!$C$4,Phonebook[[#This Row],[Дата присвоения статуса]]<>\"\"),EDATE(Phonebook[[#This Row],[Дата присвоения статуса]],Phonebook[[#This Row],[Срок аттестации (месяцы)]]),\"\"),\"\")","v":""},{"$f":"IFERROR(IF(Phonebook[[#This Row],[Дата окончания аттестации]]-TODAY()=0,\"Крайний срок\",IF(AND(Phonebook[[#This Row],[Статус датчика]]=Лист2!$C$4,Phonebook[[#This Row],[Дата присвоения статуса]]<>\"\"),IF(Phonebook[[#This Row],[Дата окончания аттестации]]-TODAY()<0,\"Истекший срок\",Phonebook[[#This Row],[Дата окончания аттестации]]-TODAY()),\"\")),\"\")","v":""}]
["ЛХ-412\\60","53644",{"$f":"IF(OR(ТаблПаспорта[для сравнения]=Phonebook[[#This Row],[Тип датчика]]&\"|\"&Phonebook[[#This Row],[Номер датчика]]),\"Есть паспорт\",\"Нет паспорта\")","v":"Есть паспорт"},"Аттестован","119 Изделие","2014-09-25",3,{"$f":"IFERROR(IF(AND(Phonebook[[#This Row],[Статус датчика]]=Лист2!$C$4,Phonebook[[#This Row],[Дата присвоения статуса]]<>\"\"),EDATE(Phonebook[[#This Row],[Дата присвоения статуса]],Phonebook[[#This Row],[Срок аттестации (месяцы)]]),\"\"),\"\")","v":""},{"$f":"IFERROR(IF(Phonebook[[#This Row],[Дата окончания аттестации]]-TODAY()=0,\"Крайний срок\",IF(AND(Phonebook[[#This Row],[Статус датчика]]=Лист2!$C$4,Phonebook[[#This Row],[Дата присвоения статуса]]<>\"\"),IF(Phonebook[[#This Row],[Дата окончания аттестации]]-TODAY()<0,\"Истекший срок\",Phonebook[[#This Row],[Дата окончания аттестации]]-TODAY()),\"\")),\"\")","v":""}]

{"sheet":"Лист2","index":1,"n_rows":55,"n_cols":7,"rows_kept":55,"cut":false,"hidden":false,"merged":[]}
["Названия",null,"Статусы",null,"Тип паспорта","Номер паспорта","для сравнения"]
["Bm-206\\10",null,"Аттестован",null,"ЛХ-412\\60","16591",{"$f":"ТаблПаспорта[[#This Row],[Тип паспорта]]&\"|\"&ТаблПаспорта[[#This Row],[Номер паспорта]]","v":"ЛХ-412\\60|16591"}]
["Bm-206\\110",null,"Не аттестован",null,"ЛХ-412\\60","38526",{"$f":"ТаблПаспорта[[#This Row],[Тип паспорта]]&\"|\"&ТаблПаспорта[[#This Row],[Номер паспорта]]","v":"ЛХ-412\\60|38526"}]
["Bm-206\\160",null,"Выдан",null,"ЛХ-412\\60","42280",{"$f":"ТаблПаспорта[[#This Row],[Тип паспорта]]&\"|\"&ТаблПаспорта[[#This Row],[Номер паспорта]]","v":"ЛХ-412\\60|42280"}]
["Bm-206\\220",null,"Нет информации",null,"ЛХ-412\\60","48500",{"$f":"ТаблПаспорта[[#This Row],[Тип паспорта]]&\"|\"&ТаблПаспорта[[#This Row],[Номер паспорта]]","v":"ЛХ-412\\60|48500"}]
["Bm-206\\300",null,"Списан",null,"ЛХ-412\\60","27341",{"$f":"ТаблПаспорта[[#This Row],[Тип паспорта]]&\"|\"&ТаблПаспорта[[#This Row],[Номер паспорта]]","v":"ЛХ-412\\60|27341"}]
["Bm-206\\40",null,null,null,"ЛХ-412\\60","32867",{"$f":"ТаблПаспорта[[#This Row],[Тип паспорта]]&\"|\"&ТаблПаспорта[[#This Row],[Номер паспорта]]","v":"ЛХ-412\\60|32867"}]
["Bm-206\\80",null,null,null,"ЛХ-412\\60","34878",{"$f":"ТаблПаспорта[[#This Row],[Тип паспорта]]&\"|\"&ТаблПаспорта[[#This Row],[Номер паспорта]]","v":"ЛХ-412\\60|34878"}]
["Bm-212\\1250",null,null,null,"ЛХ-412\\60","36365",{"$f":"ТаблПаспорта[[#This Row],[Тип паспорта]]&\"|\"&ТаблПаспорта[[#This Row],[Номер паспорта]]","v":"ЛХ-412\\60|36365"}]
["ДОСЭ-1000",null,null,null,"ЛХ-412\\60","34806",{"$f":"ТаблПаспорта[[#This Row],[Тип паспорта]]&\"|\"&ТаблПаспорта[[#This Row],[Номер паспорта]]","v":"ЛХ-412\\60|34806"}]
["ДПС 012",null,null,null,"ЛХ-412\\60","03553",{"$f":"ТаблПаспорта[[#This Row],[Тип паспорта]]&\"|\"&ТаблПаспорта[[#This Row],[Номер паспорта]]","v":"ЛХ-412\\60|03553"}]
["ДСТ\\100",null,null,null,"ЛХ-412\\60","06047",{"$f":"ТаблПаспорта[[#This Row],[Тип паспорта]]&\"|\"&ТаблПаспорта[[#This Row],[Номер паспорта]]","v":"ЛХ-412\\60|06047"}]
["ЛХ-144",null,null,null,"ЛХ-412\\60","51473",{"$f":"ТаблПаспорта[[#This Row],[Тип паспорта]]&\"|\"&ТаблПаспорта[[#This Row],[Номер паспорта]]","v":"ЛХ-412\\60|51473"}]
["ЛХ-412\\100",null,null,null,"ЛХ-412\\60","32341",{"$f":"ТаблПаспорта[[#This Row],[Тип паспорта]]&\"|\"&ТаблПаспорта[[#This Row],[Номер паспорта]]","v":"ЛХ-412\\60|32341"}]
["ЛХ-412\\150",null,null,null,"ЛХ-412\\60","25951",{"$f":"ТаблПаспорта[[#This Row],[Тип паспорта]]&\"|\"&ТаблПаспорта[[#This Row],[Номер паспорта]]","v":"ЛХ-412\\60|25951"}]
["ЛХ-412\\250",null,null,null,"ЛХ-412\\60","33361",{"$f":"ТаблПаспорта[[#This Row],[Тип паспорта]]&\"|\"&ТаблПаспорта[[#This Row],[Номер паспорта]]","v":"ЛХ-412\\60|33361"}]
["ЛХ-412\\400",null,null,null,"ЛХ-412\\60","23150",{"$f":"ТаблПаспорта[[#This Row],[Тип паспорта]]&\"|\"&ТаблПаспорта[[#This Row],[Номер паспорта]]","v":"ЛХ-412\\60|23150"}]
["ЛХ-412\\60",null,null,null,"ЛХ-412\\60","09501",{"$f":"ТаблПаспорта[[#This Row],[Тип паспорта]]&\"|\"&ТаблПаспорта[[#This Row],[Номер паспорта]]","v":"ЛХ-412\\60|09501"}]
["ЛХ-412\\600",null,null,null,"ЛХ-412\\60","36344",{"$f":"ТаблПаспорта[[#This Row],[Тип паспорта]]&\"|\"&ТаблПаспорта[[#This Row],[Номер паспорта]]","v":"ЛХ-412\\60|36344"}]
["ЛХ-412\\80",null,null,null,"ЛХ-412\\60","36171",{"$f":"ТаблПаспорта[[#This Row],[Тип паспорта]]&\"|\"&ТаблПаспорта[[#This Row],[Номер паспорта]]","v":"ЛХ-412\\60|36171"}]
["ЛХ-415\\10",null,null,null,"ЛХ-412\\60","23042",{"$f":"ТаблПаспорта[[#This Row],[Тип паспорта]]&\"|\"&ТаблПаспорта[[#This Row],[Номер паспорта]]","v":"ЛХ-412\\60|23042"}]
["ЛХ-415\\15",null,null,null,"ЛХ-412\\60","42917",{"$f":"ТаблПаспорта[[#This Row],[Тип паспорта]]&\"|\"&ТаблПаспорта[[#This Row],[Номер паспорта]]","v":"ЛХ-412\\60|42917"}]
["ЛХ-415\\20",null,null,null,"ЛХ-412\\60","42184",{"$f":"ТаблПаспорта[[#This Row],[Тип паспорта]]&\"|\"&ТаблПаспорта[[#This Row],[Номер паспорта]]","v":"ЛХ-412\\60|42184"}]
["ЛХ-415\\30",null,null,null,"ЛХ-412\\60","53644",{"$f":"ТаблПаспорта[[#This Row],[Тип паспорта]]&\"|\"&ТаблПаспорта[[#This Row],[Номер паспорта]]","v":"ЛХ-412\\60|53644"}]
["ЛХ-417\\100",null,null,null,"ЛХ-412\\60","35992",{"$f":"ТаблПаспорта[[#This Row],[Тип паспорта]]&\"|\"&ТаблПаспорта[[#This Row],[Номер паспорта]]","v":"ЛХ-412\\60|35992"}]
["ЛХ-417\\150",null,null,null,"ЛХ-412\\60","33370",{"$f":"ТаблПаспорта[[#This Row],[Тип паспорта]]&\"|\"&ТаблПаспорта[[#This Row],[Номер паспорта]]","v":"ЛХ-412\\60|33370"}]
["ЛХ-417\\250",null,null,null,"ЛХ-412\\60","33314",{"$f":"ТаблПаспорта[[#This Row],[Тип паспорта]]&\"|\"&ТаблПаспорта[[#This Row],[Номер паспорта]]","v":"ЛХ-412\\60|33314"}]
["НЕТ 033-1",null,null,null,"ЛХ-412\\60","23345",{"$f":"ТаблПаспорта[[#This Row],[Тип паспорта]]&\"|\"&ТаблПаспорта[[#This Row],[Номер паспорта]]","v":"ЛХ-412\\60|23345"}]
["НТ-049",null,null,null,"ЛХ-412\\60","23062",{"$f":"ТаблПаспорта[[#This Row],[Тип паспорта]]&\"|\"&ТаблПаспорта[[#This Row],[Номер паспорта]]","v":"ЛХ-412\\60|23062"}]
["НТ-050",null,null,null,"ЛХ-412\\60","23329",{"$f":"ТаблПаспорта[[#This Row],[Тип паспорта]]&\"|\"&ТаблПаспорта[[#This Row],[Номер паспорта]]","v":"ЛХ-412\\60|23329"}]
["НТ-052",null,null,null,"ЛХ-412\\60","23276",{"$f":"ТаблПаспорта[[#This Row],[Тип паспорта]]&\"|\"&ТаблПаспорта[[#This Row],[Номер паспорта]]","v":"ЛХ-412\\60|23276"}]
["ПДТ-10",null,null,null,"ЛХ-412\\60","12785",{"$f":"ТаблПаспорта[[#This Row],[Тип паспорта]]&\"|\"&ТаблПаспорта[[#This Row],[Номер паспорта]]","v":"ЛХ-412\\60|12785"}]
["ТПА-0,8",null,null,null,"ЛХ-412\\60","51443",{"$f":"ТаблПаспорта[[#This Row],[Тип паспорта]]&\"|\"&ТаблПаспорта[[#This Row],[Номер паспорта]]","v":"ЛХ-412\\60|51443"}]
["ТПА-1,5",null,null,null,"ЛХ-412\\60","33334",{"$f":"ТаблПаспорта[[#This Row],[Тип паспорта]]&\"|\"&ТаблПаспорта[[#This Row],[Номер паспорта]]","v":"ЛХ-412\\60|33334"}]
["ТПА-100",null,null,null,"ЛХ-412\\60","33431",{"$f":"ТаблПаспорта[[#This Row],[Тип паспорта]]&\"|\"&ТаблПаспорта[[#This Row],[Номер паспорта]]","v":"ЛХ-412\\60|33431"}]
["ТПА-12",null,null,null,"ЛХ-412\\60","12763",{"$f":"ТаблПаспорта[[#This Row],[Тип паспорта]]&\"|\"&ТаблПаспорта[[#This Row],[Номер паспорта]]","v":"ЛХ-412\\60|12763"}]
["ТПА-200",null,null,null,"ЛХ-412\\60","15403",{"$f":"ТаблПаспорта[[#This Row],[Тип паспорта]]&\"|\"&ТаблПаспорта[[#This Row],[Номер паспорта]]","v":"ЛХ-412\\60|15403"}]
["ТПА-25",null,null,null,"ЛХ-412\\60","16374",{"$f":"ТаблПаспорта[[#This Row],[Тип паспорта]]&\"|\"&ТаблПаспорта[[#This Row],[Номер паспорта]]","v":"ЛХ-412\\60|16374"}]
["ТПА-3",null,null,null,"ЛХ-412\\60","012384",{"$f":"ТаблПаспорта[[#This Row],[Тип паспорта]]&\"|\"&ТаблПаспорта[[#This Row],[Номер паспорта]]","v":"ЛХ-412\\60|012384"}]
["ТПА-50",null,null,null,"ЛХ-412\\60","012423",{"$f":"ТаблПаспорта[[#This Row],[Тип паспорта]]&\"|\"&ТаблПаспорта[[#This Row],[Номер паспорта]]","v":"ЛХ-412\\60|012423"}]
["ТПА-6",null,null,null,"ЛХ-412\\60","012387",{"$f":"ТаблПаспорта[[#This Row],[Тип паспорта]]&\"|\"&ТаблПаспорта[[#This Row],[Номер паспорта]]","v":"ЛХ-412\\60|012387"}]
[null,null,null,null,"ЛХ-412\\60","26867",{"$f":"ТаблПаспорта[[#This Row],[Тип паспорта]]&\"|\"&ТаблПаспорта[[#This Row],[Номер паспорта]]","v":"ЛХ-412\\60|26867"}]
[null,null,null,null,"ЛХ-412\\60","33023",{"$f":"ТаблПаспорта[[#This Row],[Тип паспорта]]&\"|\"&ТаблПаспорта[[#This Row],[Номер паспорта]]","v":"ЛХ-412\\60|33023"}]
[null,null,null,null,"ЛХ-412\\60","34852",{"$f":"ТаблПаспорта[[#This Row],[Тип паспорта]]&\"|\"&ТаблПаспорта[[#This Row],[Номер паспорта]]","v":"ЛХ-412\\60|34852"}]
[null,null,null,null,"ЛХ-412\\60","10716",{"$f":"ТаблПаспорта[[#This Row],[Тип паспорта]]&\"|\"&ТаблПаспорта[[#This Row],[Номер паспорта]]","v":"ЛХ-412\\60|10716"}]
[null,null,null,null,"ЛХ-412\\60","33142",{"$f":"ТаблПаспорта[[#This Row],[Тип паспорта]]&\"|\"&ТаблПаспорта[[#This Row],[Номер паспорта]]","v":"ЛХ-412\\60|33142"}]
[null,null,null,null,"ЛХ-412\\60","23942",{"$f":"ТаблПаспорта[[#This Row],[Тип паспорта]]&\"|\"&ТаблПаспорта[[#This Row],[Номер паспорта]]","v":"ЛХ-412\\60|23942"}]
[null,null,null,null,"ЛХ-412\\60","36352",{"$f":"ТаблПаспорта[[#This Row],[Тип паспорта]]&\"|\"&ТаблПаспорта[[#This Row],[Номер паспорта]]","v":"ЛХ-412\\60|36352"}]
[null,null,null,null,"ЛХ-412\\60","04725",{"$f":"ТаблПаспорта[[#This Row],[Тип паспорта]]&\"|\"&ТаблПаспорта[[#This Row],[Номер паспорта]]","v":"ЛХ-412\\60|04725"}]
[null,null,null,null,"ЛХ-412\\60","36548",{"$f":"ТаблПаспорта[[#This Row],[Тип паспорта]]&\"|\"&ТаблПаспорта[[#This Row],[Номер паспорта]]","v":"ЛХ-412\\60|36548"}]
[null,null,null,null,"ЛХ-412\\60","42747",{"$f":"ТаблПаспорта[[#This Row],[Тип паспорта]]&\"|\"&ТаблПаспорта[[#This Row],[Номер паспорта]]","v":"ЛХ-412\\60|42747"}]
[null,null,null,null,"ЛХ-412\\60","18915",{"$f":"ТаблПаспорта[[#This Row],[Тип паспорта]]&\"|\"&ТаблПаспорта[[#This Row],[Номер паспорта]]","v":"ЛХ-412\\60|18915"}]
[null,null,null,null,"ЛХ-412\\60","20937",{"$f":"ТаблПаспорта[[#This Row],[Тип паспорта]]&\"|\"&ТаблПаспорта[[#This Row],[Номер паспорта]]","v":"ЛХ-412\\60|20937"}]
[null,null,null,null,"ЛХ-412\\60","34817",{"$f":"ТаблПаспорта[[#This Row],[Тип паспорта]]&\"|\"&ТаблПаспорта[[#This Row],[Номер паспорта]]","v":"ЛХ-412\\60|34817"}]
[null,null,null,null,"ЛХ-412\\60","51405",{"$f":"ТаблПаспорта[[#This Row],[Тип паспорта]]&\"|\"&ТаблПаспорта[[#This Row],[Номер паспорта]]","v":"ЛХ-412\\60|51405"}]

{"sheet":"Лист3","index":2,"n_rows":0,"n_cols":0,"rows_kept":0,"cut":false,"hidden":false,"merged":[]}